bitfinex/quotes_SOLUSD_20240603
["timestamp","ask_amount","ask_price","bid_price","bid_amount"]
[1717423364812,8.532,165.99,165.88,2.2304]
[1717423365015,2.2292,165.98,165.88,2.2304]
[1717423365615,2.2293,165.97,165.88,2.2304]
[1717423365916,2.2293,165.97,165.85,24.26]
[1717423366125,2.2293,165.97,165.87,2.2305]
[1717423366841,2.2294,165.96,165.86,47.2307]
[1717423367142,2.2296,165.95,165.86,2.2307]
[1717423367345,2.2296,165.95,165.85,24.26]
[1717423367550,2.2294,165.96,165.87,2.2306]
[1717423367716,2.2293,165.97,165.88,2.2305]
[1717423367922,8.532,165.99,165.89,2.2303]
[1717423368220,8.532,165.99,165.89,2.2302]
[1717423368221,6.3029,165.99,165.89,2.2302]
[1717423368423,2.2291,165.98,165.89,2.2302]
[1717423368641,8.532,165.99,165.9,2.2302]
[1717423368944,8.532,165.99,165.86,18.01]
[1717423369150,6.3029,165.99,165.87,63.18]
[1717423369316,2.2288,166.01,165.91,2.23]
[1717423369713,2.2289,166.0,165.91,2.23]
[1717423369916,30.639569,166.03,165.93,2.2298]
[1717423370141,2.2288,166.01,165.91,2.23]
[1717423370321,30.639569,166.03,165.9,45.0]
[1717423370322,2.229,165.99,165.9,45.0]
[1717423370519,2.229,165.99,165.9,47.2302]
[1717423370717,6.5004,166.03,165.9,45.0]
[1717423370926,2.2288,166.01,165.91,2.2301]
[1717423371143,2.2289,166.0,165.91,2.2301]
[1717423371348,8.729,166.03,165.91,18.01]
[1717423371559,2.2283,166.05,165.95,2.2295]
[1717423372043,2.2285,166.03,165.93,26.4898]
[1717423372340,2.2285,166.03,165.94,2.2296]
[1717423372535,6.1785,166.07,165.94,45.0]
[1717423372732,2.2275,166.11,166.01,2.2287]
[1717423372941,0.554967,166.12,165.98,24.26]
[1717423373257,2.2281,166.06,165.96,2.2294]
[1717423373419,30.94234344,166.12,165.99,2.229]
[1717423373932,2.2278,166.08,165.98,2.2291]
[1717423374135,2.2274,166.11,166.01,2.2287]
[1717423374539,2.2276,166.1,166.01,2.2287]
[1717423374724,2.2274,166.11,166.01,2.2287]
[1717423374922,0.554967,166.12,165.97,69.8678]
[1717423375136,0.554967,166.12,166.03,2.2284]
[1717423375725,2.782267,166.12,166.02,2.2286]
[1717423375928,2.782267,166.12,166.03,2.2284]
[1717423376129,0.554967,166.12,166.01,26.4887]
[1717423376332,0.554967,166.12,166.01,24.26]
[1717423376333,2.2277,166.09,166.01,24.26]
[1717423376646,0.554967,166.12,165.98,2.229]
[1717423376647,2.2279,166.07,165.98,2.229]
[1717423377631,2.2282,166.05,165.96,2.2294]
[1717423377829,4.4558,166.08,165.95,6.1756]
[1717423378022,2.2282,166.06,165.95,6.1756]
[1717423378220,0.34,166.09,165.98,2.2291]
[1717423378221,2.2279,166.08,165.98,2.2291]
[1717423378444,2.2279,166.08,165.95,6.1756]
[1717423378623,2.2278,166.08,165.96,0.40652927]
[1717423378825,0.17,166.09,165.96,45.40652926]
[1717423379025,2.2279,166.07,165.98,2.2291]
[1717423379323,0.554967,166.12,165.96,63.01]
[1717423379539,2.2279,166.07,165.98,2.2291]
[1717423379846,2.2278,166.09,165.97,24.4]
[1717423380051,2.2278,166.09,166.0,2.2289]
[1717423380252,0.554967,166.12,165.98,63.01]
[1717423380433,2.2274,166.11,166.02,2.2285]
[1717423380754,0.554967,166.12,165.98,63.01]
[1717423381068,2.2278,166.09,166.0,2.2288]
[1717423381361,2.2277,166.09,166.0,2.2289]
[1717423381843,2.2282,166.06,165.98,45.0]
[1717423382047,96.08,166.11,165.95,6.1756]
[1717423382236,60.0,166.09,165.94,24.4]
[1717423382564,2.2287,166.02,165.93,2.2298]
[1717423382739,2.2287,166.01,165.92,2.2299]
[1717423383474,19.9143,166.03,165.9,24.4]
[1717423383761,19.9143,166.03,165.89,2.2303]
[1717423383762,2.2292,165.98,165.89,2.2303]
[1717423383970,6.1328,166.01,165.89,2.2302]
[1717423384133,2.2291,165.99,165.89,2.2302]
[1717423384540,6.1328,166.01,165.87,29.0723]
[1717423384773,2.2289,166.0,165.91,2.23]
[1717423385239,2.2289,166.0,165.9,2.2302]
[1717423385436,8.3616,166.01,165.87,29.0723]
[1717423385636,2.2289,166.0,165.9,2.2301]
[1717423385954,15.4573,166.03,165.9,2.2301]
[1717423385955,2.229,165.99,165.9,47.2301]
[1717423386267,2.2287,166.01,165.87,29.0723]
[1717423386447,2.2289,166.0,165.89,18.01]
[1717423386768,2.229,165.99,165.9,2.2302]
[1717423387360,2.2289,166.0,165.91,2.23]
[1717423387739,2.229,165.99,165.91,2.2301]
[1717423387954,2.2289,166.0,165.91,2.2301]
[1717423388474,0.34,166.02,165.85,18.01]
[1717423388759,2.2292,165.98,165.89,2.2303]
[1717423389335,2.229,165.99,165.9,2.2302]
[1717423389675,2.229,165.99,165.81,4.4628]
[1717423389676,0.17,165.98,165.81,4.4628]
[1717423389969,0.17,165.98,165.8,6.6947]
[1717423389970,4.4586,165.97,165.8,24.4]
[1717423390173,2.2298,165.93,165.84,2.231]
[1717423390465,2.2298,165.93,165.83,2.2311]
[1717423390667,2.23,165.92,165.82,2.2313]
[1717423391048,2.5698,165.94,165.83,2.2311]
[1717423391374,2.2298,165.93,165.83,2.2311]
[1717423391684,21.3416,165.9,165.81,2.2313]
[1717423392185,21.3416,165.9,165.77,18.01]
[1717423392186,23.5718,165.9,165.8,2.2315]
[1717423392462,21.3416,165.9,165.81,2.2314]
[1717423392676,21.3416,165.9,165.82,2.2312]
[1717423392863,21.3416,165.9,165.75,17.3223]
[1717423392864,8.7517,165.94,165.83,2.231]
[1717423393048,6.5219,165.94,165.83,2.231]
[1717423393259,2.2301,165.91,165.81,26.6314]
[1717423393582,2.2301,165.91,165.81,2.2314]
[1717423393741,0.17,165.93,165.81,2.2313]
[1717423393942,0.17,165.93,165.8,47.2315]
[1717423393943,2.2303,165.9,165.8,47.2315]
[1717423394249,2.2303,165.9,165.81,2.2314]
[1717423394657,2.23,165.92,165.82,2.2313]
[1717423394871,2.2301,165.91,165.82,2.2313]
[1717423395768,2.4003,165.9,165.8,2.2314]
[1717423396093,2.2301,165.91,165.81,2.2313]
[1717423396291,2.2301,165.91,165.82,2.2312]
[1717423396985,2.23,165.92,165.83,2.2311]
[1717423397488,0.34,165.93,165.78,42.41]
[1717423397699,2.23,165.92,165.82,2.2312]
[1717423397997,2.2298,165.93,165.84,2.231]
[1717423398159,2.23,165.92,165.83,2.2311]
[1717423398360,6.5219,165.94,165.81,18.01]
[1717423398583,6.5219,165.94,165.82,87.58]
[1717423398785,8.7517,165.94,165.84,2.2309]
[1717423398993,2.2298,165.93,165.84,2.2309]
[1717423399173,8.7516,165.94,165.85,2.2309]
[1717423399366,6.5219,165.94,165.86,2.2307]
[1717423399565,6.5219,165.94,165.87,2.2306]
[1717423399812,6.5219,165.94,165.83,4.4623]
[1717423400033,6.5219,165.94,165.84,63.01]
[1717423400191,4.4574,166.02,165.88,2.2304]
[1717423400192,6.0156,165.98,165.88,2.2304]
[1717423400515,6.0156,165.98,165.87,24.4]
[1717423400726,6.0156,165.98,165.88,45.0]
[1717423400885,8.2448,165.98,165.89,2.2303]
[1717423401091,6.0156,165.98,165.91,2.2301]
[1717423401290,6.0156,165.98,165.9,2.2302]
[1717423402102,6.0156,165.98,165.89,47.2302]
[1717423402391,6.0156,165.98,165.88,45.0]
[1717423402595,2.2293,165.97,165.88,2.2305]
[1717423402816,6.1856,165.98,165.85,2.2309]
[1717423403037,0.34,165.97,165.85,2.2309]
[1717423403188,2.2297,165.94,165.85,2.2309]
[1717423403392,2.2296,165.95,165.85,2.2309]
[1717423403621,0.34,165.97,165.83,42.41]
[1717423403797,6.0156,165.95,165.87,2.2305]
[1717423403994,6.0156,165.95,165.89,2.2303]
[1717423404231,6.0156,165.98,165.9,2.2302]
[1717423404721,8.0747,165.98,165.89,2.2303]
[1717423405303,8.0747,165.98,165.87,42.41]
[1717423405304,5.8456,165.98,165.88,45.0]
[1717423405894,5.8456,165.98,165.9,2.2302]
[1717423406098,5.8456,165.98,165.91,2.23]
[1717423406324,5.8456,165.98,165.9,2.2302]
[1717423406631,5.8456,165.98,165.88,45.0]
[1717423406632,5.8456,165.98,165.89,2.2303]
[1717423406801,5.8456,165.98,165.88,63.01]
[1717423407510,5.8456,165.98,165.9,2.2302]
[1717423407730,8.0747,165.98,165.89,2.2303]
[1717423408105,2.2293,165.97,165.89,2.2303]
[1717423408428,5.8456,165.98,165.88,63.01]
[1717423408637,15.2792,166.02,165.88,63.01]
[1717423408808,2.2288,166.01,165.93,2.2298]
[1717423409008,2.2288,166.01,165.92,2.2299]
[1717423409348,24.0133,166.03,165.94,2.2296]
[1717423409641,22.1249,166.08,165.92,19.82679674]
[1717423409937,2.2283,166.05,165.96,2.2294]
[1717423410231,2.2283,166.04,165.95,26.6295]
[1717423410529,2.2283,166.04,165.96,2.2293]
[1717423410734,2.2283,166.04,165.95,26.6295]
[1717423410921,2.2283,166.04,165.96,2.2294]
[1717423411316,2.228,166.07,165.98,2.229]
[1717423411627,22.1249,166.08,165.98,2.229]
[1717423411821,2.228,166.07,165.99,2.229]
[1717423412129,2.228,166.07,165.98,2.2291]
[1717423412313,2.228,166.07,165.99,2.2289]
[1717423412521,2.228,166.07,165.98,2.2291]
[1717423412733,2.2281,166.06,165.98,2.2291]
[1717423412909,22.1249,166.08,165.95,24.4]
[1717423412910,2.2284,166.04,165.95,24.4]
[1717423413104,6.4946,166.02,165.86,9.66366167]
[1717423413403,2.2293,165.97,165.88,2.2304]
[1717423413628,2.2294,165.96,165.88,2.2304]
[1717423413837,2.2293,165.97,165.88,2.2304]
[1717423414006,2.2294,165.96,165.87,2.2306]
[1717423414207,36.08,166.01,165.86,2.2307]
[1717423414407,2.2297,165.94,165.83,24.4]
[1717423414630,2.2296,165.95,165.86,2.2307]
[1717423414835,2.2296,165.95,165.87,2.2306]
[1717423415047,2.2294,165.96,165.87,2.2306]
[1717423415338,2.2296,165.95,165.83,42.41]
[1717423415718,2.2296,165.95,165.86,2.2306]
[1717423416049,4.4582,165.99,165.86,2.2306]
[1717423416230,2.2301,165.92,165.83,24.4]
[1717423416424,8.2436,165.93,165.83,2.2311]
[1717423417022,2.2299,165.92,165.82,2.2312]
[1717423417226,6.0138,165.93,165.84,2.2309]
[1717423417421,6.0138,165.93,165.84,2.231]
[1717423418132,6.0138,165.93,165.85,2.2308]
[1717423418438,6.0138,165.93,165.82,26.9352]
[1717423418623,64.72440028,166.05,165.89,2.2302]
[1717423418624,6.0754,165.97,165.89,2.2302]
[1717423418935,6.0754,165.97,165.92,2.2299]
[1717423419131,6.0754,165.97,165.91,2.2301]
[1717423419333,2.2285,166.03,165.91,45.0]
[1717423419535,81.5939,166.05,165.91,45.0]
[1717423419536,2.2287,166.01,165.91,45.0]
[1717423419832,2.2286,166.02,165.91,45.0]
[1717423420046,21.5939,166.05,165.87,2.2305]
[1717423420047,60.0,166.03,165.87,2.2305]
[1717423420233,2.229,165.99,165.87,47.2305]
[1717423420438,15.4002,165.98,165.88,2.2304]
[1717423420835,0.17,165.97,165.88,2.2304]
[1717423421123,0.17,165.97,165.89,2.2303]
[1717423421319,15.4002,165.98,165.9,2.2302]
[1717423421539,15.4002,165.98,165.87,18.01]
[1717423422046,15.4002,165.98,165.88,47.2304]
[1717423422633,15.4002,165.98,165.89,2.2303]
[1717423423023,15.4002,165.98,165.88,45.0]
[1717423424234,15.4002,165.98,165.9,2.2302]
[1717423424436,15.4002,165.98,165.91,2.23]
[1717423424621,15.4002,165.98,165.92,2.2299]
[1717423424825,15.4002,165.98,165.93,2.2298]
[1717423425039,21.7734,165.98,165.93,2.2298]
[1717423425328,21.7734,165.98,165.92,2.2299]
[1717423425529,21.7734,165.98,165.89,24.4]
[1717423425732,21.7734,165.98,165.9,47.2302]
[1717423425934,21.7734,165.98,165.9,45.0]
[1717423426342,21.7734,165.98,165.87,2.2305]
[1717423426536,21.7734,165.98,165.83,11.1553]
[1717423426537,21.7734,165.98,165.89,2.2303]
[1717423427041,21.7734,165.98,165.85,22.4718]
[1717423427042,21.7734,165.98,165.85,11.1543]
[1717423427251,21.7734,165.98,165.86,45.0]
[1717423427430,21.7734,165.98,165.89,2.2303]
[1717423427839,0.34,165.97,165.87,2.2306]
[1717423428054,0.34,165.97,165.86,2.2307]
[1717423428352,0.34,165.97,165.84,24.4]
[1717423428353,21.7734,165.98,165.89,2.2303]
[1717423428847,21.7734,165.98,165.89,2.2302]
[1717423429253,21.7734,165.98,165.9,2.2301]
[1717423429426,21.7734,165.98,165.89,2.2303]
[1717423429938,21.7734,165.98,165.88,2.2304]
[1717423430437,21.7734,165.98,165.9,2.2302]
[1717423430846,21.7734,165.98,165.89,2.2303]
[1717423431432,21.7734,165.98,165.9,2.2302]
[1717423431753,21.7734,165.98,165.88,22.4709]
[1717423431932,21.7734,165.98,165.9,24.4]
[1717423432135,21.7734,165.98,165.91,47.23]
[1717423432842,21.7734,165.98,165.92,2.2299]
[1717423434051,21.7734,165.98,165.91,45.0]
[1717423434665,21.7734,165.98,165.91,47.23]
[1717423435256,21.7734,165.98,165.91,45.0]
[1717423435738,21.7734,165.98,165.9,26.6302]
[1717423436142,21.7734,165.98,165.91,2.2301]
[1717423436355,21.7734,165.98,165.9,26.6302]
[1717423436753,21.7734,165.98,165.92,2.2299]
[1717423436949,21.7734,165.98,165.91,47.23]
[1717423437136,21.7734,165.98,165.91,45.0]
[1717423437344,21.7734,165.98,165.91,47.2299]
[1717423437677,21.7734,165.98,165.92,2.2299]
[1717423437882,6.5082,165.97,165.92,2.2299]
[1717423438050,6.5082,165.97,165.91,47.23]
[1717423438259,6.5082,165.97,165.91,2.23]
[1717423438461,6.5082,165.97,165.9,47.2302]
[1717423438756,6.5082,166.0,165.91,2.23]
[1717423439284,6.5082,166.0,165.92,2.2299]
[1717423439490,6.5082,166.0,165.93,2.2298]
[1717423439776,6.5082,166.0,165.9,67.4704]
[1717423439974,6.5082,166.0,165.93,2.2298]
[1717423440192,6.5082,166.0,165.9,67.4704]
[1717423440348,6.5082,166.0,165.93,24.4]
[1717423440697,6.5082,166.0,165.98,2.2291]
[1717423440996,0.1201926,166.03,165.94,67.4694]
[1717423441288,0.1201926,166.03,165.98,2.2291]
[1717423441489,6.4987926,166.03,165.97,2.2292]
[1717423441853,6.4987926,166.03,165.94,67.4694]
[1717423442073,0.1201926,166.03,166.0,2.2288]
[1717423442377,22.0311,166.11,166.02,28.8571]
[1717423442581,22.0311,166.11,166.06,2.228]
[1717423442884,22.0311,166.11,166.03,45.0]
[1717423443483,22.0311,166.11,166.04,2.2282]
[1717423444559,6.3507,166.11,166.05,2.2282]
[1717423445185,6.3507,166.11,166.06,2.228]
[1717423445375,15.908,166.14,166.08,2.2278]
[1717423446165,15.908,166.14,166.07,47.2279]
[1717423446596,15.908,166.14,166.09,2.2277]
[1717423446887,15.908,166.14,166.08,2.2278]
[1717423447256,6.0365,166.16,166.08,2.2278]
[1717423448475,6.0365,166.16,166.09,2.2276]
[1717423448681,7.08958341,166.2,166.11,18.01]
[1717423448990,0.8208826,166.2,166.12,47.2272]
[1717423449163,0.8208826,166.2,166.12,45.0]
[1717423449363,3.0470826,166.2,166.12,45.0]
[1717423449678,3.0470826,166.2,166.08,24.4]
[1717423449679,24.9856,166.19,166.08,24.4]
[1717423450153,22.7592,166.19,166.09,2.2275]
[1717423450353,22.7592,166.19,166.08,24.4]
[1717423450573,22.7592,166.19,166.09,2.2276]
[1717423451158,22.7592,166.19,166.09,47.2276]
[1717423451382,22.7592,166.19,166.02,10.8107]
[1717423451562,2.227,166.15,166.03,2.2285]
[1717423451758,15.4597,166.12,166.0,24.4]
[1717423452084,15.4597,166.12,165.98,24.1675]
[1717423452085,2.2275,166.1,165.98,2.229]
[1717423452252,0.17,166.11,165.95,24.4]
[1717423452468,0.34,166.11,165.95,28.859]
[1717423452801,17.6871,166.12,166.03,2.2284]
[1717423452802,15.4597,166.12,166.03,2.2284]
[1717423453095,15.4597,166.12,166.02,2.2286]
[1717423453969,15.4597,166.12,166.03,2.2284]
[1717423454301,15.4597,166.12,166.05,2.2282]
[1717423454507,15.4597,166.12,166.04,2.2283]
[1717423454710,15.4597,166.12,166.05,2.2282]
[1717423455296,6.5009,166.13,166.07,2.2279]
[1717423455503,6.5009,166.13,166.02,18.01]
[1717423455797,6.5009,166.13,166.03,45.0]
[1717423455970,6.5009,166.13,166.03,2.2284]
[1717423456167,6.5009,166.13,166.01,47.2286]
[1717423456368,6.5009,166.13,165.99,24.4]
[1717423456369,2.2274,166.11,165.99,24.4]
[1717423456915,15.9792,166.07,165.95,18.01]
[1717423457195,15.9792,166.07,165.97,2.2292]
[1717423457493,15.9792,166.07,165.94,42.41]
[1717423457494,6.0613,166.06,165.94,42.41]
[1717423457865,6.0613,166.06,165.96,2.2293]
[1717423458773,6.0613,166.06,165.97,2.2292]
[1717423458988,2.2277,166.09,166.01,0.2]
[1717423459299,40.8746,166.12,166.01,0.2]
[1717423459300,15.0882,166.07,166.01,0.2]
[1717423460315,17.3162,166.07,166.01,0.2]
[1717423460478,15.0882,166.07,166.01,0.2]
[1717423460889,17.3161,166.07,166.01,0.2]
[1717423461087,16.2027,166.05,166.01,0.2]
[1717423461296,16.2027,166.04,166.01,0.2]
[1717423462083,2.3978,166.08,166.01,0.2]
[1717423462285,22.2159,166.07,166.01,0.2]
[1717423462476,0.34,166.06,166.01,0.2]
[1717423462676,22.2155,166.04,166.01,0.2]
[1717423462888,6.2035,166.02,166.01,0.2]
[1717423465198,21.8684,166.02,166.01,0.2]
[1717423465510,6.2035,166.02,166.01,0.2]
[1717423465696,21.771,166.02,166.01,0.2]
[1717423465915,6.2035,166.02,166.01,0.2]
[1717423466779,15.5675,166.06,166.01,0.2]
[1717423467002,6.0415,166.06,166.01,0.2]
[1717423467207,15.35,166.1,166.01,0.2]
[1717423467411,15.35,166.1,166.01,45.2]
[1717423467610,15.35,166.1,166.02,47.2286]
[1717423467816,15.35,166.1,166.03,2.2284]
[1717423468120,15.35,166.1,166.01,0.2]
[1717423468121,15.35,166.1,166.04,23.1283]
[1717423468428,15.35,166.1,166.05,45.0]
[1717423468634,6.0415,166.12,166.05,47.2282]
[1717423469126,6.0415,166.12,166.05,45.0]
[1717423471519,6.0415,166.12,166.06,2.2281]
[1717423471823,6.0415,166.12,166.05,47.2282]
[1717423472000,15.1338,166.14,166.07,2.2279]
[1717423472197,15.1338,166.14,166.06,2.228]
[1717423472404,15.1338,166.14,166.07,2.2279]
[1717423473418,15.1338,166.14,166.06,2.228]
[1717423474495,15.1338,166.14,166.04,63.01]
[1717423474822,15.1338,166.14,166.05,2.2281]
[1717423475037,15.1338,166.14,166.04,2.2283]
[1717423475452,17.3609,166.14,166.03,2.2284]
[1717423475742,15.1338,166.14,166.05,2.2282]
[1717423476048,15.1338,166.14,166.04,2.2282]
[1717423476542,17.3608,166.14,166.03,2.2284]
[1717423476741,0.34,166.13,166.03,2.2284]
[1717423477121,0.34,166.13,166.04,2.2283]
[1717423477448,2.2276,166.1,166.01,0.2]
[1717423477651,6.5067,166.09,166.01,0.2]
[1717423477940,6.3367,166.09,166.01,0.2]
[1717423478123,2.3978,166.08,166.01,0.2]
[1717423478923,0.17,166.08,166.01,0.2]
[1717423480642,6.1667,166.09,166.01,0.2]
[1717423480846,0.34,166.08,166.01,0.2]
[1717423481057,2.5679,166.08,166.01,0.2]
[1717423481218,2.228,166.07,166.01,0.2]
[1717423481632,2.5678,166.08,166.01,0.2]
[1717423482933,2.2279,166.07,166.01,0.2]
[1717423483343,6.0754,166.04,166.01,0.2]
[1717423483716,22.5568,166.05,166.01,0.2]
[1717423484021,22.5568,166.03,166.01,0.2]
[1717423485345,6.6386,166.03,166.01,0.2]
[1717423486443,22.2627,166.03,166.01,0.2]
[1717423486634,6.26818467,166.09,166.01,0.2]
[1717423486942,6.6254,166.05,166.01,0.2]
[1717423488146,0.17,166.08,166.01,2.4287]
[1717423488450,0.17,166.08,166.01,0.2]
[1717423488654,6.0246,166.09,166.01,0.2]
[1717423489349,6.0246,166.09,166.01,2.4287]
[1717423490848,6.0246,166.09,166.01,0.2]
[1717423491857,6.0246,166.09,166.02,20.9]
[1717423492060,6.0246,166.09,166.03,45.0]
[1717423493361,6.0246,166.09,166.02,20.9]
[1717423494063,2.3979,166.08,166.01,0.2]
[1717423494663,2.3979,166.07,166.01,0.2]
[1717423494865,15.3684,166.05,166.01,0.2]
[1717423495164,6.5604,166.04,166.01,0.2]
[1717423496173,6.6593,166.08,166.01,0.2]
[1717423496350,0.17,166.07,166.01,0.2]
[1717423496555,6.6593,166.08,166.01,0.2]
[1717423498668,8.8871,166.08,166.01,0.2]
[1717423498858,12.92521636,166.08,166.01,0.2]
[1717423499365,15.15301636,166.08,166.01,0.2]
[1717423499867,12.92521636,166.08,166.01,0.2]
[1717423500075,0.17,166.07,166.01,0.2]
[1717423500777,24.2638,166.04,166.01,0.2]
[1717423501077,22.5898,166.02,166.01,0.2]
[1717423501249,25.1584,166.02,166.01,0.2]
[1717423501450,22.9298,166.02,166.01,0.2]
[1717423501644,22.7598,166.02,166.01,0.2]
[1717423501854,6.5647,166.02,166.01,0.2]
[1717423502062,6.3447,166.05,166.01,0.2]
[1717423502261,16.4484,166.04,166.01,0.2]
[1717423502443,6.3447,166.03,166.01,0.2]
[1717423502646,6.5638,166.05,166.01,0.2]
[1717423503470,21.52461636,166.08,166.01,0.2]
[1717423503654,6.3544,166.09,166.02,20.9]
[1717423504045,6.26490228,166.11,166.03,45.0]
[1717423504373,6.26490228,166.11,166.03,47.2283]
[1717423504560,6.26490228,166.11,166.03,45.0]
[1717423504762,15.648,166.12,166.05,20.9]
[1717423504956,6.1101,166.13,166.05,20.9]
[1717423505165,6.1101,166.13,166.05,23.1282]
[1717423505481,6.26329734,166.14,166.05,2.2282]
[1717423505660,6.26329734,166.14,166.06,20.9]
[1717423506060,8.49029734,166.14,166.06,20.9]
[1717423506278,6.26329734,166.14,166.06,20.9]
[1717423506652,15.6256,166.15,166.06,20.9]
[1717423507152,21.89001516,166.15,166.06,20.9]
[1717423507548,8.49131516,166.15,166.06,20.9]
[1717423507887,2.397,166.14,166.06,20.9]
[1717423508092,2.2271,166.13,166.06,20.9]
[1717423508397,0.17,166.12,166.06,20.9]
[1717423508559,8.49141516,166.15,166.06,20.9]
[1717423508757,2.567,166.14,166.06,20.9]
[1717423509185,0.34,166.14,166.06,20.9]
[1717423509391,0.34,166.14,166.03,45.0]
[1717423509688,0.34,166.14,166.05,20.9]
[1717423510290,0.34,166.14,166.05,23.1282]
[1717423510454,0.34,166.14,166.06,45.0]
[1717423510659,8.49141516,166.15,166.08,20.9]
[1717423510660,6.26441516,166.15,166.08,20.9]
[1717423510964,6.2927,166.17,166.08,23.1278]
[1717423511171,6.262072,166.17,166.09,45.0]
[1717423511889,2.2266,166.18,166.09,45.0]
[1717423512090,6.26178698,166.19,166.11,20.9]
[1717423512868,8.48818698,166.19,166.11,20.9]
[1717423513504,6.26178698,166.19,166.11,20.9]
[1717423513805,6.26178698,166.19,166.11,23.1274]
[1717423514098,0.8208826,166.2,166.12,45.0]
[1717423514897,3.0470826,166.2,166.12,45.0]
[1717423515376,3.0470826,166.2,166.11,47.2274]
[1717423515567,0.8208826,166.2,166.12,2.2272]
[1717423515767,0.8208826,166.2,166.11,47.2273]
[1717423515992,0.8208826,166.2,166.08,2.2278]
[1717423515993,2.2266,166.18,166.08,2.2278]
[1717423516223,0.17,166.17,166.09,2.2276]
[1717423516398,0.17,166.17,166.08,23.1278]
[1717423516571,0.17,166.17,166.08,20.9]
[1717423516572,2.3966,166.17,166.08,20.9]
[1717423517183,0.17,166.17,166.08,23.1278]
[1717423517387,2.3966,166.17,166.08,20.9]
[1717423517573,0.17,166.16,166.08,20.9]
[1717423517777,2.3967,166.16,166.08,20.9]
[1717423517971,2.2272,166.13,166.03,2.2284]
[1717423518172,0.34,166.12,166.03,23.1284]
[1717423518997,0.34,166.12,166.01,0.2]
[1717423519196,2.2277,166.09,166.01,0.2]
[1717423519502,0.17,166.08,166.01,0.2]
[1717423519701,2.2275,166.1,166.01,0.2]
[1717423519702,0.17,166.09,166.01,0.2]
[1717423519870,0.34,166.09,166.01,0.2]
[1717423520288,6.7012,166.09,166.01,0.2]
[1717423520778,6.3577,166.06,166.01,0.2]
[1717423520979,6.6977,166.05,166.01,0.2]
[1717423524605,2.5682,166.05,166.01,0.2]
[1717423524901,6.2677,166.03,166.01,0.2]
[1717423525098,0.17,166.02,166.01,0.2]
[1717423525682,22.3378,166.02,166.01,0.2]
[1717423525894,6.6077,166.02,166.01,0.2]
[1717423526100,22.3378,166.02,166.01,0.2]
[1717423526410,6.6077,166.02,166.01,0.2]
[1717423527901,0.34,166.02,166.01,0.2]
[1717423529214,0.17,166.02,166.01,0.2]
[1717423529399,6.26803002,166.05,166.01,0.2]
[1717423529799,43.71884982,166.1,166.01,0.2]
[1717423530002,6.26490981,166.09,166.01,0.2]
[1717423530394,8.49260981,166.09,166.01,0.2]
[1717423530721,2.2278,166.08,166.01,0.2]
[1717423531078,6.26490981,166.09,166.01,21.1]
[1717423531287,6.6381,166.11,166.02,45.0]
[1717423531999,6.26389156,166.12,166.02,47.2286]